[Event "Early-Titled-Tuesday-Blitz-October-03-2023"]
[Site "Chess.com"]
[Date "2023.10.03"]
[Round "6"]
[White "Vaathi_Coming"]
[Black "BlueWizzard"]
[Result "1/2-1/2"]
[WhiteElo "2887"]
[BlackElo "2964"]
[TimeControl "180+1"]
[EndTime "9:08:43 PDT"]
[Termination "Game drawn - insufficient material"]

1. Nf3 {[%clk 0:03:00.9]} 1... c5 {[%clk 0:02:59.6]} 2. e3 {[%clk 0:02:59.1]}
2... d5 {[%clk 0:02:56.4]} 3. d4 {[%clk 0:03:00]} 3... cxd4 {[%clk 0:02:56.5]}
4. exd4 {[%clk 0:03:00]} 4... Nc6 {[%clk 0:02:56.5]} 5. c3 {[%clk 0:02:58.7]}
5... Qc7 {[%clk 0:02:56.3]} 6. h3 {[%clk 0:02:56.9]} 6... Nf6 {[%clk 0:02:50.4]}
7. Bd3 {[%clk 0:02:56.6]} 7... e5 {[%clk 0:02:50.5]} 8. dxe5 {[%clk 0:02:54.5]}
8... Nxe5 {[%clk 0:02:51.4]} 9. O-O {[%clk 0:02:53]} 9... Nxd3 {[%clk
0:02:46.2]} 10. Qxd3 {[%clk 0:02:53.9]} 10... Be7 {[%clk 0:02:46.7]} 11. Bg5
{[%clk 0:02:47]} 11... O-O {[%clk 0:02:42.5]} 12. Nbd2 {[%clk 0:02:44.1]} 12...
Be6 {[%clk 0:02:36.8]} 13. Nd4 {[%clk 0:02:40.5]} 13... h6 {[%clk 0:02:34.6]}
14. Bh4 {[%clk 0:02:32.6]} 14... Rae8 {[%clk 0:02:31.7]} 15. Rfe1 {[%clk
0:02:24.8]} 15... Bd8 {[%clk 0:02:22.7]} 16. Bg3 {[%clk 0:02:15.8]} 16... Qb6
{[%clk 0:02:19.2]} 17. a4 {[%clk 0:02:15.4]} 17... Bd7 {[%clk 0:02:06.2]} 18.
Rxe8 {[%clk 0:02:03.3]} 18... Rxe8 {[%clk 0:02:04.9]} 19. b4 {[%clk 0:01:59.1]}
19... Ne4 {[%clk 0:01:59.6]} 20. Nxe4 {[%clk 0:01:54.2]} 20... dxe4 {[%clk
0:01:55.7]} 21. Qc4 {[%clk 0:01:47.6]} 21... Qg6 {[%clk 0:01:35.1]} 22. Qd5
{[%clk 0:01:34.7]} 22... Bc6 {[%clk 0:01:31.4]} 23. Nxc6 {[%clk 0:01:33.2]}
23... Qxc6 {[%clk 0:01:32.3]} 24. Qxc6 {[%clk 0:01:32.7]} 24... bxc6 {[%clk
0:01:33.2]} 25. Rd1 {[%clk 0:01:31.1]} 25... Bf6 {[%clk 0:01:25.4]} 26. c4
{[%clk 0:01:31.1]} 26... e3 {[%clk 0:01:25.8]} 27. fxe3 {[%clk 0:01:14.7]} 27...
Rxe3 {[%clk 0:01:25.7]} 28. Bf2 {[%clk 0:01:11.9]} 28... Rb3 {[%clk 0:01:10.1]}
29. b5 {[%clk 0:00:22.1]} 29... Rb4 {[%clk 0:01:01.1]} 30. Rc1 {[%clk
0:00:04.1]} 30... Rxa4 {[%clk 0:00:32.1]} 31. bxc6 {[%clk 0:00:04.4]} 31... Ra6
{[%clk 0:00:31.5]} 32. c7 {[%clk 0:00:02.2]} 32... Rc6 {[%clk 0:00:31.6]} 33.
Bxa7 {[%clk 0:00:02.3]} 33... Bg5 {[%clk 0:00:26.6]} 34. Rc2 {[%clk 0:00:01.7]}
34... Rxc7 {[%clk 0:00:27.3]} 35. Bb6 {[%clk 0:00:01.4]} 35... Rc6 {[%clk
0:00:27.3]} 36. c5 {[%clk 0:00:02]} 36... f5 {[%clk 0:00:21.2]} 37. Kf1 {[%clk
0:00:02.1]} 37... Kf7 {[%clk 0:00:21.7]} 38. Ke2 {[%clk 0:00:02.7]} 38... Ke6
{[%clk 0:00:22.2]} 39. Kd3 {[%clk 0:00:02.5]} 39... Kd5 {[%clk 0:00:22.8]} 40.
Kc3 {[%clk 0:00:02.2]} 40... Be3 {[%clk 0:00:20.1]} 41. Kb4 {[%clk 0:00:02.5]}
41... Rxb6+ {[%clk 0:00:12.1]} 42. cxb6 {[%clk 0:00:03.4]} 42... Bxb6 {[%clk
0:00:12.5]} 43. Re2 {[%clk 0:00:03.8]} 43... g5 {[%clk 0:00:11]} 44. Kc3 {[%clk
0:00:03.7]} 44... h5 {[%clk 0:00:11.3]} 45. Kd3 {[%clk 0:00:03.5]} 45... h4
{[%clk 0:00:10.6]} 46. Re8 {[%clk 0:00:03.4]} 46... Bc7 {[%clk 0:00:10.8]} 47.
Ke2 {[%clk 0:00:03]} 47... Bf4 {[%clk 0:00:10.8]} 48. Kf3 {[%clk 0:00:03]} 48...
Bc1 {[%clk 0:00:10.9]} 49. Ke2 {[%clk 0:00:03.1]} 49... Bf4 {[%clk 0:00:10.9]}
50. Kd3 {[%clk 0:00:03.1]} 50... Bc1 {[%clk 0:00:10.9]} 51. Rc8 {[%clk
0:00:02.9]} 51... Bf4 {[%clk 0:00:10.9]} 52. Rd8+ {[%clk 0:00:03.2]} 52... Ke5
{[%clk 0:00:09.5]} 53. Re8+ {[%clk 0:00:03.5]} 53... Kd5 {[%clk 0:00:09.9]} 54.
Ra8 {[%clk 0:00:02.9]} 54... Bc1 {[%clk 0:00:08.9]} 55. Ra5+ {[%clk 0:00:03.1]}
55... Ke6 {[%clk 0:00:09.4]} 56. Kc4 {[%clk 0:00:03.2]} 56... Kf6 {[%clk
0:00:08.9]} 57. Kd5 {[%clk 0:00:03.1]} 57... Bf4 {[%clk 0:00:08.8]} 58. Ra6+
{[%clk 0:00:03.2]} 58... Kf7 {[%clk 0:00:09.2]} 59. Ra7+ {[%clk 0:00:03]} 59...
Kf6 {[%clk 0:00:09.5]} 60. Ra6+ {[%clk 0:00:03.9]} 60... Kf7 {[%clk 0:00:09.9]}
61. Rc6 {[%clk 0:00:04.1]} 61... Ke7 {[%clk 0:00:09.3]} 62. Kd4 {[%clk
0:00:02.6]} 62... Kf7 {[%clk 0:00:09.4]} 63. Kc5 {[%clk 0:00:02.8]} 63... Ke7
{[%clk 0:00:09.7]} 64. Kd5 {[%clk 0:00:03.1]} 64... Kf7 {[%clk 0:00:10.2]} 65.
Re6 {[%clk 0:00:03.7]} 65... Bc7 {[%clk 0:00:09.5]} 66. Re2 {[%clk 0:00:03.1]}
66... Bf4 {[%clk 0:00:09.7]} 67. Kc6 {[%clk 0:00:03.1]} 67... Bg3 {[%clk
0:00:09.1]} 68. Kd7 {[%clk 0:00:03.6]} 68... Bf4 {[%clk 0:00:09.3]} 69. Re7+
{[%clk 0:00:02.9]} 69... Kf6 {[%clk 0:00:09.9]} 70. Re6+ {[%clk 0:00:03.4]}
70... Kf7 {[%clk 0:00:10.4]} 71. Re7+ {[%clk 0:00:04]} 71... Kf6 {[%clk
0:00:11]} 72. Ke8 {[%clk 0:00:04.7]} 72... Bh2 {[%clk 0:00:07.7]} 73. Rf7+
{[%clk 0:00:04.3]} 73... Ke5 {[%clk 0:00:08]} 74. Kf8 {[%clk 0:00:04]} 74... Kf4
{[%clk 0:00:06.1]} 75. Kg7 {[%clk 0:00:03.9]} 75... g4 {[%clk 0:00:04.9]} 76.
Kg6 {[%clk 0:00:03.4]} 76... gxh3 {[%clk 0:00:05.3]} 77. gxh3 {[%clk 0:00:03.8]}
77... Kg3 {[%clk 0:00:05.9]} 78. Kxf5 {[%clk 0:00:03.4]} 78... Kxh3 {[%clk
0:00:06.8]} 79. Rg7 {[%clk 0:00:02.7]} 79... Bg3 {[%clk 0:00:06.9]} 80. Ke4
{[%clk 0:00:03]} 80... Kg2 {[%clk 0:00:07.7]} 81. Rh7 {[%clk 0:00:03.1]} 81...
h3 {[%clk 0:00:08.1]} 82. Rxh3 {[%clk 0:00:03.4]} 82... Kxh3 {[%clk 0:00:08.4]}
1/2-1/2

[Event "Early-Titled-Tuesday-Blitz-October-03-2023"]
[Site "Chess.com"]
[Date "2023.10.03"]
[Round "6"]
[White "chesslh19"]
[Black "themind1hunter"]
[Result "0-1"]
[WhiteElo "2331"]
[BlackElo "2546"]
[TimeControl "180+1"]
[EndTime "9:08:49 PDT"]
[Termination "themind1hunter won by resignation"]

1. e4 {[%clk 0:03:00.9]} 1... c5 {[%clk 0:01:26.3]} 2. Nf3 {[%clk 0:03:00.2]}
2... Nc6 {[%clk 0:01:24]} 3. d4 {[%clk 0:03:00.3]} 3... cxd4 {[%clk 0:01:24.2]}
4. Nxd4 {[%clk 0:03:01.2]} 4... Nf6 {[%clk 0:01:22.4]} 5. Nc3 {[%clk 0:03:01.2]}
5... d6 {[%clk 0:01:22.3]} 6. Be2 {[%clk 0:03:01]} 6... e6 {[%clk 0:01:21.3]} 7.
O-O {[%clk 0:03:00.7]} 7... Be7 {[%clk 0:01:22]} 8. Be3 {[%clk 0:03:01.2]} 8...
O-O {[%clk 0:01:22.5]} 9. f4 {[%clk 0:03:00.5]} 9... a6 {[%clk 0:01:22]} 10. a4
{[%clk 0:03:00.2]} 10... Bd7 {[%clk 0:01:20.6]} 11. Nb3 {[%clk 0:03:00]} 11...
Na5 {[%clk 0:01:20.3]} 12. Nxa5 {[%clk 0:02:54.3]} 12... Qxa5 {[%clk 0:01:21.2]}
13. Qd2 {[%clk 0:02:55.2]} 13... Rfc8 {[%clk 0:01:19.6]} 14. Nd5 {[%clk
0:02:40.1]} 14... Qxd2 {[%clk 0:01:18.4]} 15. Nxe7+ {[%clk 0:02:40.1]} 15... Kf8
{[%clk 0:01:18.5]} 16. Bxd2 {[%clk 0:02:40.6]} 16... Kxe7 {[%clk 0:01:19.4]} 17.
Bd3 {[%clk 0:02:36.1]} 17... d5 {[%clk 0:01:08.8]} 18. Bc3 {[%clk 0:01:23.9]}
18... Nxe4 {[%clk 0:01:00.6]} 19. Bxg7 {[%clk 0:01:15]} 19... f6 {[%clk
0:01:00.2]} 20. Rfe1 {[%clk 0:00:49.6]} 20... Kf7 {[%clk 0:00:55]} 21. Bh6
{[%clk 0:00:39.3]} 21... Kg6 {[%clk 0:00:55.1]} 22. f5+ {[%clk 0:00:32]} 22...
Kxh6 {[%clk 0:00:54]} 23. fxe6 {[%clk 0:00:31.9]} 23... Bxe6 {[%clk 0:00:41.3]}
24. Bxe4 {[%clk 0:00:32]} 24... dxe4 {[%clk 0:00:42.2]} 25. Rxe4 {[%clk
0:00:32.9]} 25... Rc6 {[%clk 0:00:40.7]} 26. c3 {[%clk 0:00:28.9]} 26... Rd8
{[%clk 0:00:29.6]} 27. Rae1 {[%clk 0:00:28.4]} 27... Bf5 {[%clk 0:00:29.7]} 28.
Re7 {[%clk 0:00:26.3]} 28... Rd7 {[%clk 0:00:27.1]} 29. Re8 {[%clk 0:00:22.6]}
29... Rdd6 {[%clk 0:00:17.5]} 30. R8e7 {[%clk 0:00:21.3]} 30... b6 {[%clk
0:00:15.3]} 31. h3 {[%clk 0:00:17.2]} 31... Re6 {[%clk 0:00:13.9]} 32. R7xe6
{[%clk 0:00:14.8]} 32... Rxe6 {[%clk 0:00:14.3]} 33. Rf1 {[%clk 0:00:14.8]}
33... Bc2 {[%clk 0:00:13.9]} 34. Rf2 {[%clk 0:00:14.9]} 34... Bxa4 {[%clk
0:00:13.7]} 35. Rf4 {[%clk 0:00:15.4]} 35... Bb3 {[%clk 0:00:12.8]} 36. Rb4
{[%clk 0:00:15.4]} 36... Bc2 {[%clk 0:00:11.6]} 37. Kh2 {[%clk 0:00:14.8]} 37...
a5 {[%clk 0:00:11.8]} 38. Rf4 {[%clk 0:00:14.4]} 38... f5 {[%clk 0:00:11.5]} 39.
Kg3 {[%clk 0:00:12.4]} 39... Kg5 {[%clk 0:00:10.9]} 40. Rd4 {[%clk 0:00:12.6]}
40... Be4 {[%clk 0:00:09.4]} 41. h4+ {[%clk 0:00:12.2]} 41... Kf6 {[%clk
0:00:09.6]} 42. Kf4 {[%clk 0:00:12.7]} 42... Bxg2 {[%clk 0:00:09.6]} 43. Rd8
{[%clk 0:00:11.9]} 43... Be4 {[%clk 0:00:08.1]} 44. Rh8 {[%clk 0:00:11.4]} 44...
Kg7 {[%clk 0:00:08]} 45. Rb8 {[%clk 0:00:11.3]} 45... Rg6 {[%clk 0:00:07.6]} 46.
Rd8 {[%clk 0:00:10.2]} 46... Rg4+ {[%clk 0:00:05.9]} 47. Ke5 {[%clk 0:00:10.6]}
47... Rg6 {[%clk 0:00:05.1]} 48. Rd7+ {[%clk 0:00:11.5]} 48... Kh6 {[%clk
0:00:05]} 49. h5 {[%clk 0:00:11]} 49... Kxh5 {[%clk 0:00:05.2]} 50. Rxh7+ {[%clk
0:00:10.9]} 50... Kg4 {[%clk 0:00:06.1]} 51. Rh8 {[%clk 0:00:10.3]} 51... Kf3
{[%clk 0:00:04.1]} 52. Rh3+ {[%clk 0:00:10.2]} 52... Ke2 {[%clk 0:00:04.3]} 53.
Rh2+ {[%clk 0:00:10.5]} 53... Kd3 {[%clk 0:00:03.4]} 54. Kf4 {[%clk 0:00:09.8]}
54... Kc4 {[%clk 0:00:03.5]} 55. Ke5 {[%clk 0:00:09.9]} 55... Kb3 {[%clk
0:00:03.1]} 56. Kd4 {[%clk 0:00:10.3]} 56... Rd6+ {[%clk 0:00:02.2]} 57. Ke5
{[%clk 0:00:10.6]} 57... Rd1 {[%clk 0:00:03.1]} 58. Rh6 {[%clk 0:00:10.1]} 58...
Rb1 {[%clk 0:00:04]} 59. Rxb6+ {[%clk 0:00:10.3]} 59... Kc2 {[%clk 0:00:04.7]}
60. b4 {[%clk 0:00:10.3]} 60... a4 {[%clk 0:00:04.4]} 61. Ra6 {[%clk 0:00:09.7]}
61... Kb3 {[%clk 0:00:04.5]} 62. b5 {[%clk 0:00:09.8]} 62... a3 {[%clk
0:00:03.7]} 63. b6 {[%clk 0:00:10]} 63... Ka2 {[%clk 0:00:04.3]} 64. c4 {[%clk
0:00:09.7]} 64... Rc1 {[%clk 0:00:03.9]} 65. Kd4 {[%clk 0:00:09.5]} 65... Kb3
{[%clk 0:00:04]} 66. c5 {[%clk 0:00:09.5]} 66... Rc4+ {[%clk 0:00:04.5]} 67. Ke5
{[%clk 0:00:07]} 67... Rxc5+ {[%clk 0:00:05.4]} 68. Kd6 {[%clk 0:00:07.3]} 68...
Rb5 {[%clk 0:00:05.9]} 69. Kc7 {[%clk 0:00:04.8]} 69... a2 {[%clk 0:00:06.1]}
70. Ra7 {[%clk 0:00:04.1]} 70... Kb2 {[%clk 0:00:06]} 71. b7 {[%clk 0:00:02.9]}
71... Rxb7+ {[%clk 0:00:05]} 72. Rxb7+ {[%clk 0:00:03.3]} 72... Bxb7 {[%clk
0:00:05.7]} 73. Kxb7 {[%clk 0:00:03.4]} 73... a1=Q {[%clk 0:00:06.6]} 74. Kc6
{[%clk 0:00:02]} 74... f4 {[%clk 0:00:07.5]} 0-1

[Event "Early-Titled-Tuesday-Blitz-October-03-2023"]
[Site "Chess.com"]
[Date "2023.10.03"]
[Round "6"]
[White "Orujov2008"]
[Black "arminmusovic"]
[Result "1-0"]
[WhiteElo "2655"]
[BlackElo "2509"]
[TimeControl "180+1"]
[EndTime "9:09:07 PDT"]
[Termination "Orujov2008 won by checkmate"]

1. e4 {[%clk 0:03:00.9]} 1... c5 {[%clk 0:02:59]} 2. Nf3 {[%clk 0:03:01]} 2...
Nf6 {[%clk 0:02:59.2]} 3. Nc3 {[%clk 0:03:00.4]} 3... e6 {[%clk 0:02:59.4]} 4.
d4 {[%clk 0:02:59.2]} 4... cxd4 {[%clk 0:02:59]} 5. Nxd4 {[%clk 0:03:00.1]} 5...
d5 {[%clk 0:02:59]} 6. Bb5+ {[%clk 0:02:54.7]} 6... Bd7 {[%clk 0:02:58.2]} 7.
exd5 {[%clk 0:02:54.4]} 7... exd5 {[%clk 0:02:58.5]} 8. O-O {[%clk 0:02:52.3]}
8... a6 {[%clk 0:02:55.4]} 9. Bxd7+ {[%clk 0:02:51.4]} 9... Qxd7 {[%clk
0:02:53.9]} 10. Re1+ {[%clk 0:02:48.9]} 10... Be7 {[%clk 0:02:54.4]} 11. Qe2
{[%clk 0:02:49]} 11... Nc6 {[%clk 0:02:53]} 12. Nxc6 {[%clk 0:02:39.3]} 12...
bxc6 {[%clk 0:02:53.9]} 13. Bg5 {[%clk 0:02:32]} 13... Kf8 {[%clk 0:02:54.5]}
14. Rad1 {[%clk 0:02:24.2]} 14... h6 {[%clk 0:02:43.3]} 15. Be3 {[%clk
0:02:23.4]} 15... Re8 {[%clk 0:02:35.9]} 16. Qxa6 {[%clk 0:02:21.5]} 16... g5
{[%clk 0:02:36.1]} 17. Na4 {[%clk 0:02:19.4]} 17... Ng4 {[%clk 0:02:31.5]} 18.
Bc5 {[%clk 0:02:06.1]} 18... Qf5 {[%clk 0:02:10.8]} 19. Rxe7 {[%clk 0:01:42.7]}
19... Rxe7 {[%clk 0:02:09.9]} 20. Qa7 {[%clk 0:01:35.8]} 20... Qe5 {[%clk
0:01:50.5]} 21. Qxe7+ {[%clk 0:01:11.6]} 21... Qxe7 {[%clk 0:01:49.5]} 22. Re1
{[%clk 0:01:10.7]} 22... Qxc5 {[%clk 0:01:47.4]} 23. Nxc5 {[%clk 0:01:11.6]}
23... Kg7 {[%clk 0:01:47.2]} 24. f3 {[%clk 0:01:11.1]} 24... Nf6 {[%clk
0:01:46.9]} 25. c3 {[%clk 0:01:04.1]} 25... Rd8 {[%clk 0:01:39]} 26. Rd1 {[%clk
0:00:56.1]} 26... g4 {[%clk 0:01:31.5]} 27. a4 {[%clk 0:00:51.9]} 27... gxf3
{[%clk 0:01:31.9]} 28. gxf3 {[%clk 0:00:52.8]} 28... Ne8 {[%clk 0:01:28.4]} 29.
a5 {[%clk 0:00:50.3]} 29... Nd6 {[%clk 0:01:28.2]} 30. a6 {[%clk 0:00:41.2]}
30... Rb8 {[%clk 0:01:28.3]} 31. b4 {[%clk 0:00:40.3]} 31... Nb5 {[%clk
0:01:27.3]} 32. Rd3 {[%clk 0:00:35.7]} 32... Ra8 {[%clk 0:01:27.6]} 33. Kf2
{[%clk 0:00:30.4]} 33... Kf6 {[%clk 0:01:28]} 34. Ke3 {[%clk 0:00:25.5]} 34...
Ke5 {[%clk 0:01:28.4]} 35. f4+ {[%clk 0:00:22.3]} 35... Kd6 {[%clk 0:01:27.6]}
36. c4 {[%clk 0:00:19.7]} 36... Nc7 {[%clk 0:01:28.1]} 37. cxd5 {[%clk
0:00:19.9]} 37... cxd5 {[%clk 0:01:21.8]} 38. Kd2 {[%clk 0:00:14.3]} 38... Kc6
{[%clk 0:01:18.5]} 39. Ra3 {[%clk 0:00:12.9]} 39... Kb6 {[%clk 0:01:07.5]} 40.
Kd3 {[%clk 0:00:11.8]} 40... h5 {[%clk 0:01:08.1]} 41. Ra1 {[%clk 0:00:09.9]}
41... Nb5 {[%clk 0:01:08.5]} 42. f5 {[%clk 0:00:08.5]} 42... Rg8 {[%clk
0:01:03.8]} 43. Re1 {[%clk 0:00:07.4]} 43... Rg4 {[%clk 0:00:57.7]} 44. Re7
{[%clk 0:00:02.3]} 44... Rd4+ {[%clk 0:00:55.9]} 45. Ke3 {[%clk 0:00:02]} 45...
Rxb4 {[%clk 0:00:55.7]} 46. Nd7+ {[%clk 0:00:02.7]} 46... Kxa6 {[%clk
0:00:55.2]} 47. Rxf7 {[%clk 0:00:03.6]} 47... Rh4 {[%clk 0:00:53.3]} 48. f6
{[%clk 0:00:03.6]} 48... Nd6 {[%clk 0:00:52.6]} 49. Rf8 {[%clk 0:00:02.8]} 49...
Rxh2 {[%clk 0:00:50.1]} 50. Kd4 {[%clk 0:00:03]} 50... Rd2+ {[%clk 0:00:49.2]}
51. Ke5 {[%clk 0:00:03.3]} 51... Nc4+ {[%clk 0:00:46.7]} 52. Ke6 {[%clk
0:00:03]} 52... d4 {[%clk 0:00:47.1]} 53. f7 {[%clk 0:00:03.4]} 53... Re2+
{[%clk 0:00:47.7]} 54. Kd5 {[%clk 0:00:03]} 54... Ne3+ {[%clk 0:00:45]} 55. Kxd4
{[%clk 0:00:02.6]} 55... Nc2+ {[%clk 0:00:42.8]} 56. Kd3 {[%clk 0:00:02.7]}
56... Rf2 {[%clk 0:00:43.4]} 57. Ra8+ {[%clk 0:00:02.3]} 57... Kb7 {[%clk
0:00:43.9]} 58. f8=Q {[%clk 0:00:03.2]} 58... Nb4+ {[%clk 0:00:44.4]} 59. Kc4
{[%clk 0:00:02.8]} 59... Rxf8 {[%clk 0:00:43.8]} 60. Rxf8 {[%clk 0:00:03.7]}
60... Nc6 {[%clk 0:00:43.9]} 61. Nc5+ {[%clk 0:00:03.9]} 61... Kc7 {[%clk
0:00:44.6]} 62. Rf7+ {[%clk 0:00:04.3]} 62... Kc8 {[%clk 0:00:44.8]} 63. Kd5
{[%clk 0:00:04]} 63... Nd8 {[%clk 0:00:44.3]} 64. Rh7 {[%clk 0:00:04.4]} 64...
h4 {[%clk 0:00:42.9]} 65. Kd6 {[%clk 0:00:02.7]} 65... h3 {[%clk 0:00:43]} 66.
Rh8 {[%clk 0:00:01.1]} 66... h2 {[%clk 0:00:41.8]} 67. Ne6 {[%clk 0:00:01.6]}
67... h1=Q {[%clk 0:00:37.3]} 68. Rxh1 {[%clk 0:00:01.8]} 68... Nf7+ {[%clk
0:00:37.5]} 69. Kd5 {[%clk 0:00:01.7]} 69... Kd7 {[%clk 0:00:38]} 70. Nc5+
{[%clk 0:00:02.3]} 70... Ke7 {[%clk 0:00:38.9]} 71. Rh7 {[%clk 0:00:02.6]} 71...
Kf6 {[%clk 0:00:39.8]} 72. Rh4 {[%clk 0:00:02]} 72... Ng5 {[%clk 0:00:40.7]} 73.
Rh2 {[%clk 0:00:02.2]} 73... Kf5 {[%clk 0:00:41.6]} 74. Rf2+ {[%clk 0:00:02.4]}
74... Kg4 {[%clk 0:00:42.5]} 75. Ra2 {[%clk 0:00:03]} 75... Kf4 {[%clk
0:00:42.8]} 76. Ra3 {[%clk 0:00:03.9]} 76... Kf5 {[%clk 0:00:43.6]} 77. Ra4
{[%clk 0:00:04.8]} 77... Nf7 {[%clk 0:00:43.4]} 78. Ra5 {[%clk 0:00:05.7]} 78...
Ng5 {[%clk 0:00:43.6]} 79. Nd7 {[%clk 0:00:05.9]} 79... Kf4 {[%clk 0:00:43.8]}
80. Ra1 {[%clk 0:00:06.5]} 80... Nf3 {[%clk 0:00:43.6]} 81. Rf1 {[%clk
0:00:05.9]} 81... Ke3 {[%clk 0:00:44.5]} 82. Ne5 {[%clk 0:00:05.6]} 82... Nd2
{[%clk 0:00:44.9]} 83. Ra1 {[%clk 0:00:05.7]} 83... Ke2 {[%clk 0:00:38.7]} 84.
Ra2 {[%clk 0:00:04.8]} 84... Kd1 {[%clk 0:00:39.2]} 85. Kd4 {[%clk 0:00:04.5]}
85... Kc1 {[%clk 0:00:39.1]} 86. Kc3 {[%clk 0:00:04.1]} 86... Ne4+ {[%clk
0:00:37.5]} 87. Kd3 {[%clk 0:00:03.4]} 87... Nc5+ {[%clk 0:00:37.6]} 88. Kc4
{[%clk 0:00:03.3]} 88... Ne6 {[%clk 0:00:38]} 89. Nd3+ {[%clk 0:00:03.4]} 89...
Kb1 {[%clk 0:00:37.8]} 90. Rb2+ {[%clk 0:00:03.4]} 90... Ka1 {[%clk 0:00:38.4]}
91. Rh2 {[%clk 0:00:02.7]} 91... Ng5 {[%clk 0:00:33.6]} 92. Kc3 {[%clk
0:00:02.6]} 92... Ne4+ {[%clk 0:00:34]} 93. Kb3 {[%clk 0:00:02.9]} 93... Ng3
{[%clk 0:00:25.5]} 94. Rg2 {[%clk 0:00:02.4]} 94... Ne2 {[%clk 0:00:18.9]} 95.
Rxe2 {[%clk 0:00:02.6]} 95... Kb1 {[%clk 0:00:19.8]} 96. Re1# {[%clk 0:00:03.4]}
1-0